Cogmind - Beta 14 @@@ ROGUE MODE // 2024.09.30 @ 12:15:05 Player: Wintermute Result: Destroyed by RO-ZEX(R) with Subdweller Shrapnel Launcher Performance ------------- Evolutions (0) 0 Regions Visited (2) 400 Robots Destroyed (24) 120 Value Destroyed (453) 453 Prototype IDs (0) 0 Alien Tech Used (0) 0 Bonus (0) 0 TOTAL SCORE: 973 Bonus ------- None Cogmind --------- Core Integrity 0/250 Matter 263/300 Energy 200/200 System Corruption 2% Temperature Cool (0) Movement Treading (160) Location -10/Subcaves Parts ------- > --- POWER (1) -------- Subdweller Power Source > --- PROPULSION (2) --- Improved Treads Improved Treads > --- UTILITY (2) ------ Large Storage Unit Targeting Computer > --- WEAPON (2) ------- Beam Cannon Subdweller Machine Gun > --- INVENTORY (15) --- Ion Engine Ion Engine Light Treads Light Treads Light Treads Improved Treads Improved Treads Large Storage Unit ECM Suite Medium Laser Medium Laser Beam Cannon Beam Cannon Light Cannon Peak State ------------ > --- POWER ------------ Light Ion Engine > --- PROPULSION ------- Improved Treads Improved Treads > --- UTILITY ---------- Large Storage Unit Machine Analyzer > --- WEAPON ----------- Medium Laser Beam Cannon > --- INVENTORY -------- Ion Engine Ion Engine Light Ion Engine Light Ion Engine Improved Treads Improved Treads Aluminum Leg Large Storage Unit Targeting Computer ECM Suite Medium Laser Medium Laser Beam Cannon Beam Cannon Light Cannon [Rating: 12] Favorites ----------- Power Light Ion Engine Engine Light Ion Engine Propulsion Improved Treads Treads Improved Treads Leg Aluminum Leg Utility Large Storage Unit Device Seismic Detector Storage Large Storage Unit Processor Machine Analyzer Weapon Medium Laser Energy Gun Medium Laser Energy Cannon Beam Cannon Ballistic Gun Assault Rifle Build | -11 -10 -10 ------- Run | Yrd Mat Sub Slots Evolved . | . . . Power . | . . . Propulsion . | . . . Utility . | . . . Weapon . | . . . Parts Attached 29 | 6 18 5 Power 6 | 1 3 2 Engine 6 | 1 3 2 Core . | . . . Reactor . | . . . Propulsion 10 | 2 8 . Treads 7 | . 7 . Leg 3 | 2 1 . Wheel . | . . . Hover . | . . . Flight . | . . . Utility 6 | 1 4 1 Device 2 | . 2 . Storage 2 | 1 1 . Processor 2 | . 1 1 Hackware . | . . . Protection . | . . . Artifact . | . . . Weapon 7 | 2 3 2 Energy Gun 1 | . 1 . Energy Cannon 2 | . 1 1 Ballistic Gun 4 | 2 1 1 Ballistic Cannon . | . . . Launcher . | . . . Special Weapon . | . . . Impact Weapon . | . . . Slashing Weapon . | . . . Piercing Weapon . | . . . Special Melee Weapon . | . . . Unidentified Prototypes . | . . . Parts Lost 6 | . 4 2 Power 1 | . . 1 Propulsion 2 | . 2 . Utility 2 | . 1 1 Weapon 1 | . 1 . Highest Loss Streak 4 | . 4 2 To Critical Strikes . | . . . Average Slot Usage (%) 98 | . 98 99 Engine 14 | . 14 14 Treads 24 | . 22 28 Leg 3 | . 5 . Device 6 | . 5 8 Storage 14 | . 14 14 Processor 6 | . 7 4 Energy Gun 9 | . 6 13 Energy Cannon 7 | . 2 14 Ballistic Gun 11 | . 18 . Peak Build Rating 12 | 6 12 12 Average Rating 9 | 5 8 10 On Entrance 5 | . 6 10 Naked Turns . | . . . Heaviest Build 32 | 12 30 32 Greatest Support 46 | 20 46 46 Greatest Overweight (x) 1 | . 1 . Average Overweight (x) . | . . . Largest Inventory Capacity 15 | 8 15 15 Average Capacity 13 | 7 13 15 Most Carried 15 | 4 15 15 Average Carried 11 | 3 10 14 Final Capacity 15 | 8 15 15 Final Carried 15 | 4 15 14 Class Distribution -------------------- 100% | Mutant Dominant Class ---------------- Mutant | -10/Materials Mutant | -10/Subcaves Resources | -11 -10 -10 ----------- Run | Yrd Mat Sub Matter Collected 736 | 246 423 67 Remotely . | . . . Salvage Created 706 | 90 477 139 Parts 53 | 10 33 10 Haulers Intercepted 1 | . 1 . Recyclers Shooed 2 | . 2 . Parts Field Recycled . | . . . Retrieved Matter . | . . . Parts Self-Destructed 3 | . . 3 Prevented . | . . . Kills | -11 -10 -10 ------- Run | Yrd Mat Sub Combat Hostiles Destroyed 15 | . 12 3 Guns 14 | . 12 2 Cannons 1 | . . 1 Classes Destroyed 8 | 1 6 1 Worker 1 | . 1 . Builder 1 | . 1 . Tunneler 5 | 4 1 . Hauler 1 | . 1 . Mechanic 1 | . 1 . Swarmer 6 | . 6 . Grunt 6 | . 6 . Subdweller 3 | . . 3 Best Kill Streak 5 | 2 5 2 Combat Bots Only 5 | . 5 2 Max Kills in Single Turn 2 | 1 2 1 Gunslinging 1 | . 1 . Exploded . | . . . Melee . | . . . Uniques/NPCs Destroyed . | . . . Combat | -11 -10 -10 -------- Run | Yrd Mat Sub Hostile Shots Fired 149 | . 122 27 Missed 46 | . 37 9 Damage Taken 1314 | . 755 559 Core 266 | . 123 143 Absorbed by Shields . | . . . Core Remaining (%) 100 | 100 . . Volleys Fired 74 | 8 51 15 Largest 2 | 2 2 2 Hottest 110 | 40 110 110 Shots Fired 149 | 16 101 32 Gun 129 | 16 97 16 Cannon 20 | . 4 16 Launcher . | . . . Special . | . . . Kinetic 106 | 16 86 4 Thermal 43 | . 15 28 Explosive . | . . . Electromagnetic . | . . . Robot Hit Streak 22 | 7 9 22 Robot Miss Streak 6 | 2 6 1 Penetration Max . | . . . Secondary Targets 2 | . 2 . Max Gunslinging Chain 1 | . 1 . Shots Hit Robots 91 | 10 56 25 Core Hits 36 | 4 26 6 Critical Kills . | . . . Critical Parts Destroyed . | . . . Critical Strikes 2 | . 1 1 Burn 2 | . 1 1 Melee Attacks . | . . . Impact . | . . . Slashing . | . . . Piercing . | . . . Sneak Attacks . | . . . Combat Hostiles . | . . . Follow-up Attacks . | . . . Damage Inflicted 1280 | 136 764 380 Guns 1011 | 136 719 156 Cannons 241 | . 17 224 Explosions . | . . . Melee . | . . . Ramming 28 | . 28 . Kinetic 785 | 136 631 18 Thermal 467 | . 105 362 Explosive . | . . . Electromagnetic . | . . . Impact . | . . . Slashing . | . . . Piercing . | . . . Highest Corruption 2 | . 2 2 Average Corruption 2 | . 2 2 Corruption Purged . | . . . Corruption Blocked . | . . . Effects 24 | . 4 20 Message Errors 2 | . . 2 Matter Fused 7 | . 1 6 Heat Flow Errors 3 | . . 3 Energy Discharges 3 | . 2 1 Parts Rejected 1 | . . 1 Data Loss (minor) 6 | . 1 5 Misfires 2 | . . 2 Overload Shots . | . . . Overflow Damage . | . . . Projectiles . | . . . Explosions . | . . . Melee . | . . . Knockbacks 1 | . 1 . Impact 1 | . 1 . Kinetic . | . . . Secondary . | . . . Self-Inflicted Damage . | . . . Shots . | . . . Rammed 5 | . 5 . Targets Rammed 5 | . 5 . Kicked . | . . . Crushed . | . . . Highest Temperature 227 | . 166 227 Average Temperature 68 | . 65 72 Received Heat Transfer 198 | . 108 90 Siege Activations . | . . . Robots Corrupted . | . . . Combat Hostiles . | . . . Parts Fried . | . . . Impact Corruptions . | . . . Robots Melted . | . . . Combat Hostiles . | . . . Parts Melted 5 | . 1 4 Heat Transferred 1332 | . 370 962 Parts Sabotaged . | . . . Parts Stolen . | . . . Parts Stripped . | . . . Power Chain Reactions . | . . . Alert | -11 -10 -10 ------- Run | Yrd Mat Sub Peak Influence 200 | 20 200 . Initial 13 | . 13 . Average 71 | 7 77 . Maximum Alert Level 1 | . 1 . Low Security (%) 99 | 100 99 . Level 1 . | . . . Level 2 . | . . . Level 3 . | . . . Level 4 . | . . . Level 5 . | . . . High Security . | . . . Max Security . | . . . Squads Dispatched 1 | . 1 . Investigation . | . . . Extermination . | . . . Reinforcement 1 | . 1 . Assault . | . . . Garrison . | . . . Intercept . | . . . Searches Triggered . | . . . Construction Impeded . | . . . Haulers Reinforced . | . . . Active Scanning Responses . | . . . Cargo Convoy Interrupts . | . . . Stealth | -11 -10 -10 --------- Run | Yrd Mat Sub Distress Signals 2 | . 2 . Communications Jammed . | . . . Distress Signals . | . . . Times Spotted 27 | . 23 4 Peak Tracking Total 6 | . 6 2 Tactical Retreats 1 | . 1 . Traps | -11 -10 -10 ------- Run | Yrd Mat Sub Traps Triggered 3 | . 3 . Indirectly . | . . . Trap Hack Attempts . | . . . Triggered . | . . . Disarmed . | . . . Reprogrammed . | . . . Reused . | . . . Traps Extracted . | . . . Installed . | . . . Triggered . | . . . Machines | -11 -10 -10 ---------- Run | Yrd Mat Sub Machines Disabled . | . . . Max in Single Turn . | . . . Machines Repaired . | . . . Machines Dismantled . | . . . Machines Sabotaged . | . . . Overloaded Fab Kills . | . . . Hacking | -11 -10 -10 --------- Run | Yrd Mat Sub Machines Accessed 8 | . 6 2 Terminals 6 | . 6 . Fabricators . | . . . Repair Stations . | . . . Recycling Units . | . . . Scanalyzers . | . . . Garrison Access . | . . . Total Hacks 14 | . 11 3 Successful 10 | . 7 3 Failed 4 | . 4 . Catastrophic 1 | . 1 . Database Lockouts . | . . . Manual 4 | . 4 . Terminals 11 | . 11 . Fabricators . | . . . Repair Stations . | . . . Recycling Units . | . . . Scanalyzers . | . . . Garrison Access . | . . . Terminal Hacks 10 | . 7 3 Record 1 | . . 1 Robot Analysis 1 | . 1 . Open Door 1 | . . 1 Branch Access Points 1 | . 1 . Alert Level 1 | . 1 . Dispatch Records 1 | . 1 . Hauler Manifests 1 | . 1 . Zone Layout 2 | . 2 . Release Object 1 | . . 1 Fabricator Hacks . | . . . Repair Station Hacks . | . . . Recycling Unit Hacks . | . . . Scanalyzer . | . . . Garrison Access Hacks . | . . . Unauthorized Hacks . | . . . Terminals . | . . . Fabricators . | . . . Repair Stations . | . . . Recycling Units . | . . . Scanalyzers . | . . . Garrison Access . | . . . Data Cores Recovered . | . . . Used . | . . . Hacking Detections 5 | . 5 . Full Trace Events . | . . . Feedback Events . | . . . Feedback Blocked . | . . . Robot Schematics Acquired . | . . . Robots Built . | . . . Authchips . | . . . Time . | . . . Total Robot Build Rating . | . . . Part Schematics Acquired . | . . . Parts Built . | . . . Authchips . | . . . Time . | . . . Total Part Build Rating . | . . . Parts Repaired . | . . . Time . | . . . Parts Recycled . | . . . Recycled Matter . | . . . Retrieved Matter . | . . . Retrieved Components . | . . . Parts Scanalyzed . | . . . Part Schematics Acquired . | . . . Parts Damaged . | . . . Bothacking | -11 -10 -10 ------------ Run | Yrd Mat Sub Used RIF Installer . | . . . Robots Hacked . | . . . Non-combat . | . . . Combat . | . . . Robot Hacks Applied . | . . . Relay Couplers Released . | . . . Fabnet Peak Effective % . | . . . Robots Rewired . | . . . Allies Hacked . | . . . Hacks Repelled . | . . . Allies | -11 -10 -10 -------- Run | Yrd Mat Sub Total Allies . | . . . Largest Group . | . . . Highest-Rated Group . | . . . Highest-Rated Ally . | . . . Total Orders . | . . . Ally Attacks . | . . . Total Damage . | . . . Kills . | . . . Allies Corrupted . | . . . Allies Melted . | . . . Intel | -11 -10 -10 ------- Run | Yrd Mat Sub Robot Analysis Total 1 | . 1 . Derelict Logs Recovered . | . . . Drone Launches . | . . . Drone Recoveries . | . . . Exploration | -11 -10 -10 ------------- Run | Yrd Mat Sub Turns Passed 2487 | 112 1360 1015 Spaces Moved 1293 | 61 727 505 Core 4 | 4 . . Treads 1080 | . 575 505 Legs 209 | 57 152 . Wheels . | . . . Hover . | . . . Flight . | . . . Fastest Speed 50 | 50 120 160 Average Speed 153 | 115 152 160 Slowest Speed 240 | 120 240 160 Overloaded Moves . | . . . Propulsion Burnouts . | . . . Robots Hopped . | . . . Cave-ins Triggered . | . . . Exploration Rate (%) 45 | 3 96 37 Regions Visited 2 Branch Regions 1 Pre-discovered Areas . | . . . Known Exits Taken . | . . . Unknown Exits Taken 2 | 1 1 . Scrap Searched . | . . . Spaces Dug . | . . . Terrain Destroyed . | . . . Melee . | . . . Projectile . | . . . AOE . | . . . Terrain Rammed . | . . . Walls Destroyed . | . . . Machines Disabled . | . . . Actions | -11 -10 -10 --------- Run | Yrd Mat Sub Total 1650 | 83 884 683 Wait 209 | 5 48 156 Move 1291 | 60 726 505 Hop . | . . . Pick Up 28 | 4 23 1 Fast Attach 10 | 6 4 . Attach 6 | . 3 3 Detach . | . . . Swap 13 | . 11 2 Drop 13 | . 13 . Fire 74 | 8 51 15 Melee . | . . . Ram . | . . . Kick . | . . . Crush 5 | . 5 . Escape Stasis . | . . . Rewire . | . . . Trap . | . . . Miscellaneous 1 | . . 1 Route ------- -11/Scrapyard -10/Materials (discovered 5 exits: [*Mat x3] / *Min / *Sub) -10/Subcaves History --------- Turn | Location | Event 6 | -11/Scrapyard | Discovered new exit (range 14) 113 | -11/Scrapyard | Entered Materials 302 | -10/Materials | Build established: Mutant 308 | -10/Materials | Discovered new exit (range 16) 470 | -10/Materials | Discovered new exit (range 16) 672 | -10/Materials | Lost 4 parts (2n1u1w) 921 | -10/Materials | Discovered new exit (range 16) 955 | -10/Materials | Identified exit to Mines 1191 | -10/Materials | Discovered new exit (range 14) 1463 | -10/Materials | Discovered new exit (range 8) 1473 | -10/Materials | Entered Subcaves 1646 | -10/Subcaves | Released subatomizers from SUBCON Basin 2085 | -10/Subcaves | Core integrity fell below 50% 2157 | -10/Subcaves | A swath of the cavern ceiling suddenly collapsed 2476 | -10/Subcaves | Shifting Twisted Machinery released Sub. Machine Gun 2480 | -10/Subcaves | Core integrity fell below 20% 2488 | -10/Subcaves | Destroyed by RO-ZEX(R) with Subdweller Shrapnel Launcher Last Messages --------------- 02111_ Acquired 22 matter. 02118_ Subatomizers dissect the Disposable Heat Sink. 02123_ System corrupted: Energy discharge (-50). 02130_ Acquired Beam Cannon. 02145_ Acquired 10 matter. 02146_ System corrupted: FCS attempts to trigger Beam Cannon. 02146_ System corrupted: Beam Cannon misfires. A swath of the cavern ceiling suddenly collapses. 02175_ System corrupted: Matter fused (-8). 02196_ System corrupted: Component data lost. 02323_ System corrupted: Matter fused (-6). 02373_ 1G6YAJYNPWSGS HXM=BT4CCUYD 02390_ System corrupted: Heat flow error (+265). 02430_ System corrupted: Matter fused (-5). 02450_ Sub. Optics melted. 02450_ D2-65H(R) destroyed. 02453_ Acquired 19 matter. 02459_ Acquired Sub. Machine Gun. Sub. Machine Gun falls loose from the Twisted Machinery. 02481_ System corrupted: Matter fused (-9). Map ----- +----------------------------------------------------+ | ?????????????????????????????????????????????????? | | ?????????????????????????????????????????????????? | | ?????????????????????????????????????????????????? | | ?????????????????????????????????????????????????? | | ?????????????????????????????????????????????????? | | ?????????????????????????????????????????????????? | | ?????????????????????????????????????????????????? | | ?????????????????????????????????????????????????? | | ?????????????????????????????????????????????????? | | ?????????????????????????????????????????????????? | | ?????????????????????????#???????????????????????? | | ????????????????????????? #?# ???????????????????? | | ????????????????????????? # ??????????????????? | | ????????????????????????? # ??????????????????? | | ?????????????????#??????? ???? #????????????? | | ?????????????????#"?????? ???# #????????????? | | ????????????????##" ?????# ?? #???????????? | | ????????????????#" ?????# ?? ? ???????????? | | ????????????????# ???## ? ? ???????????? | | ???????????????## ??# ## ?????????????? | | ?????????????# # ### ;;;;# #??????????????? | | ??????????????# ;# ;#?####??????????? | | ??????????????#"" ### ##??????#### | | ?????????????## " ;# ##???### | | ?????????????# [" #??## | | ?????????????"" R @ #??# # | | ?????????????????### ##?# # | | ???????????????????## ;#### ### # | | ????????????????????## ; ;;##??## ## ## | | ????????????????????# #;; # ###????# ##? | | ????????????????????### #### #??????# ## | | ?????????????????????# ## & #??????# | | ????????????????????## &&%[= #??????# | | ??????????????## #### """"!& #??????## ### | | ??????????????# "" """"#???????## ####### | | ??????????????# "" "" ##???????## ### ## | | ?????????? ###"" """" #???????## | | ????????? ???##" ####"" #??????## | | ????????? ??????#"" ??##" ######## | | ?????????? ??????? "##??## ## | | ??????????????????? ""????## ### | | ??????????????????# # "?????## #?## ## | | ??????????????????##### ??????#### #??## ##? | | ???????????????????????"?????????#######???## ##?? | | ?????????????????????????????????????????????##??? | | ?????????????????????????????????????????????????? | | ?????????????????????????????????????????????????? | | ?????????????????????????????????????????????????? | | ?????????????????????????????????????????????????? | | ?????????????????????????????????????????????????? | +----------------------------------------------------+ Best States ------------- Heat Dissipation 25 Energy Generation 15 Energy Capacity 250 Matter Stores 300 Matter Capacity 300 Sight Range 16 Terrain Scan Density 10 Evasion (%) 55 Targeting Accuracy 5 Recoil Reduction 2 Item Schematics ----------------- None Robot Schematics ------------------ None Fabricated ------------ Nothing Alien Tech Used ----------------- None Achievements -------------- None Challenges ------------ None Game ------ Seed HugeSwordDiverter Manual? 0 Play Time 00:22:47 Cumulative 26.1 hours Start 2024.09.30 @ 11:54:15 End 2024.09.30 @ 12:15:05 Sessions 1 Manual Loads 0 Difficulty Rogue Special Mode None Game No. 14 Rogue 14 Adventurer 0 Explorer 0 Win Type - Total 2 Types 2/0/0/0/0/0/0/0/0 Lore% 21 Gallery% 19 Achievement% 25 Wizard Run 0 Options --------- Layout 0 ASCII 0 Keyboard 0 Movement Vi Keybinds 0 Fullscreen 2 Font 36/X11++ Map View 76x50 Zoom Use 0% Tactical HUD 1 Map Filters NONE Filters NONE Steam 1 RUN: 6f8a7562-3083-46da-a84b-a732d62c3a66